[Event "*** Titled Tuesday Blitz"]
[Site "Chess.com"]
[Date "2018.08.07"]
[Round "3"]
[White "Gr3egor"]
[Black "djamir"]
[Result "0-1"]
[WhiteElo "2449"]
[BlackElo "2652"]
[TimeControl "180+2"]
[EndTime "13:33:42 PDT"]
[Termination "djamir won by checkmate"]

1. d4 {[%clk 0:03:01.9]} 1... d6 {[%clk 0:02:56.3]} 2. e4 {[%clk 0:03:00.4]}
2... e5 {[%clk 0:02:55.3]} 3. Nf3 {[%clk 0:02:58.1]} 3... Nd7 {[%clk 0:02:53.5]}
4. Bc4 {[%clk 0:02:58.2]} 4... c6 {[%clk 0:02:53.7]} 5. a4 {[%clk 0:02:55.6]}
5... Be7 {[%clk 0:02:53.9]} 6. Nc3 {[%clk 0:02:56.3]} 6... Ngf6 {[%clk
0:02:54.1]} 7. O-O {[%clk 0:02:52.8]} 7... O-O {[%clk 0:02:55]} 8. Re1 {[%clk
0:02:50.1]} 8... Qc7 {[%clk 0:02:55.3]} 9. Ba2 {[%clk 0:02:45.7]} 9... b6 {[%clk
0:02:55.9]} 10. h3 {[%clk 0:02:41.9]} 10... Bb7 {[%clk 0:02:56.8]} 11. Bg5
{[%clk 0:02:37.1]} 11... a6 {[%clk 0:02:55.3]} 12. Qd2 {[%clk 0:02:35.2]} 12...
b5 {[%clk 0:02:54.8]} 13. Rad1 {[%clk 0:02:34.3]} 13... b4 {[%clk 0:02:42.8]}
14. Nb1 {[%clk 0:02:35.3]} 14... a5 {[%clk 0:02:36.1]} 15. c3 {[%clk 0:02:33.1]}
15... c5 {[%clk 0:02:30.6]} 16. d5 {[%clk 0:02:31.1]} 16... Nb6 {[%clk
0:01:52.5]} 17. b3 {[%clk 0:02:30.2]} 17... Nh5 {[%clk 0:01:34.9]} 18. Be3
{[%clk 0:02:05]} 18... Nd7 {[%clk 0:01:27.3]} 19. c4 {[%clk 0:02:04.3]} 19...
Rae8 {[%clk 0:01:22.2]} 20. Qc2 {[%clk 0:01:57.5]} 20... Nf4 {[%clk 0:01:18.3]}
21. Bxf4 {[%clk 0:01:57.2]} 21... exf4 {[%clk 0:01:19.5]} 22. Nbd2 {[%clk
0:01:58.5]} 22... Bf6 {[%clk 0:01:19.8]} 23. Bb1 {[%clk 0:01:59.1]} 23... Ne5
{[%clk 0:01:19.1]} 24. Nxe5 {[%clk 0:01:57.7]} 24... Bxe5 {[%clk 0:01:21]} 25.
Nf3 {[%clk 0:01:58.9]} 25... Qe7 {[%clk 0:01:18.2]} 26. Re2 {[%clk 0:01:47]}
26... Bc8 {[%clk 0:01:19.3]} 27. Qd2 {[%clk 0:01:11.3]} 27... Kh8 {[%clk
0:01:16.4]} 28. Rf1 {[%clk 0:01:00.4]} 28... Rg8 {[%clk 0:01:16.9]} 29. Kh2
{[%clk 0:00:33.8]} 29... g5 {[%clk 0:01:17.3]} 30. Nxe5 {[%clk 0:00:34.9]} 30...
Qxe5 {[%clk 0:01:18.3]} 31. g3 {[%clk 0:00:34.4]} 31... f6 {[%clk 0:01:07.4]}
32. gxf4 {[%clk 0:00:28]} 32... gxf4 {[%clk 0:01:08]} 33. f3 {[%clk 0:00:29.2]}
33... Rg3 {[%clk 0:01:08.2]} 34. Rg2 {[%clk 0:00:28.7]} 34... Reg8 {[%clk
0:01:02]} 35. Rxg3 {[%clk 0:00:25.8]} 35... Rxg3 {[%clk 0:01:03.9]} 36. Rg1
{[%clk 0:00:27]} 36... Rxh3+ {[%clk 0:01:02.6]} 37. Kg2 {[%clk 0:00:28.5]} 37...
Qg5+ {[%clk 0:01:00.8]} 38. Kf2 {[%clk 0:00:27.8]} 38... Rh2+ {[%clk 0:01:01.2]}
39. Ke1 {[%clk 0:00:24.3]} 39... Qxg1# {[%clk 0:01:01.7]} 0-1

[Event "*** Titled Tuesday Blitz"]
[Site "Chess.com"]
[Date "2018.08.07"]
[Round "3"]
[White "JSMastropiero"]
[Black "Mbneu"]
[Result "1-0"]
[WhiteElo "2314"]
[BlackElo "2291"]
[TimeControl "180+2"]
[EndTime "13:33:51 PDT"]
[Termination "JSMastropiero won by resignation"]

1. d4 {[%clk 0:03:01.9]} 1... Nf6 {[%clk 0:02:59.7]} 2. c4 {[%clk 0:03:02.4]}
2... c5 {[%clk 0:03:00.2]} 3. d5 {[%clk 0:03:02.5]} 3... e6 {[%clk 0:03:01.4]}
4. Nc3 {[%clk 0:03:01.7]} 4... exd5 {[%clk 0:03:02.5]} 5. cxd5 {[%clk
0:03:02.6]} 5... d6 {[%clk 0:03:04.1]} 6. e4 {[%clk 0:03:03]} 6... g6 {[%clk
0:03:05.1]} 7. Nge2 {[%clk 0:03:03.8]} 7... Bg7 {[%clk 0:03:06.6]} 8. Ng3 {[%clk
0:03:04.7]} 8... O-O {[%clk 0:03:06.7]} 9. Be2 {[%clk 0:03:05.2]} 9... a6 {[%clk
0:03:07.8]} 10. a4 {[%clk 0:03:05.8]} 10... Nbd7 {[%clk 0:03:06.5]} 11. O-O
{[%clk 0:03:06.5]} 11... Qc7 {[%clk 0:03:04.2]} 12. Bf4 {[%clk 0:03:02.3]} 12...
Re8 {[%clk 0:03:01.7]} 13. Qd2 {[%clk 0:02:55.1]} 13... Ne5 {[%clk 0:03:01.8]}
14. Bh6 {[%clk 0:02:45.3]} 14... Bh8 {[%clk 0:02:59]} 15. f3 {[%clk 0:02:42.8]}
15... c4 {[%clk 0:02:27.3]} 16. Rfc1 {[%clk 0:02:39.8]} 16... Bd7 {[%clk
0:02:25.6]} 17. Be3 {[%clk 0:02:36.1]} 17... b5 {[%clk 0:02:24.7]} 18. axb5
{[%clk 0:02:34.6]} 18... axb5 {[%clk 0:02:25.1]} 19. Rxa8 {[%clk 0:02:33.4]}
19... Rxa8 {[%clk 0:02:24.9]} 20. b4 {[%clk 0:02:34.3]} 20... h5 {[%clk
0:02:06.8]} 21. h3 {[%clk 0:02:31]} 21... h4 {[%clk 0:02:06.7]} 22. Nf1 {[%clk
0:02:31.8]} 22... Nh5 {[%clk 0:02:04.4]} 23. f4 {[%clk 0:02:14.1]} 23... Nd3
{[%clk 0:02:04.1]} 24. Bxd3 {[%clk 0:02:15]} 24... cxd3 {[%clk 0:02:04.8]} 25.
Qxd3 {[%clk 0:02:13]} 25... Ra3 {[%clk 0:02:03.7]} 26. Nxb5 {[%clk 0:01:58.1]}
26... Rxd3 {[%clk 0:01:55.3]} 27. Nxc7 {[%clk 0:01:55.3]} 27... Ng3 {[%clk
0:01:51.4]} 28. Bf2 {[%clk 0:01:43.4]} 28... Nxe4 {[%clk 0:01:51.7]} 29. Bxh4
{[%clk 0:01:42.1]} 29... Nc3 {[%clk 0:01:40.2]} 30. Re1 {[%clk 0:01:37.6]} 30...
Nxd5 {[%clk 0:01:36.2]} 31. Nxd5 {[%clk 0:01:34.5]} 31... Rxd5 {[%clk
0:01:38.1]} 32. Re7 {[%clk 0:01:32.3]} 32... Bb5 {[%clk 0:01:36.5]} 33. Ng3
{[%clk 0:01:21.1]} 33... Bc3 {[%clk 0:01:21.4]} 34. Ne4 {[%clk 0:01:19.4]} 34...
Rd1+ {[%clk 0:01:19]} 35. Kh2 {[%clk 0:01:15.4]} 35... Bxb4 {[%clk 0:01:19.7]}
36. Rb7 {[%clk 0:01:07.7]} 36... Be1 {[%clk 0:01:00.1]} 37. Bf6 {[%clk
0:01:02.1]} 37... Be8 {[%clk 0:00:51.5]} 38. Rb8 {[%clk 0:00:55.6]} 38... Kf8
{[%clk 0:00:52.6]} 39. Ng5 {[%clk 0:00:57.1]} 1-0

[Event "*** Titled Tuesday Blitz"]
[Site "Chess.com"]
[Date "2018.08.07"]
[Round "3"]
[White "Aikiigm"]
[Black "FMchesstrainer"]
[Result "1-0"]
[WhiteElo "2510"]
[BlackElo "2329"]
[TimeControl "180+2"]
[EndTime "13:33:54 PDT"]
[Termination "Aikiigm won by resignation"]

1. d4 {[%clk 0:03:01.9]} 1... g6 {[%clk 0:03:01.9]} 2. h4 {[%clk 0:03:01.6]}
2... Bg7 {[%clk 0:03:03.8]} 3. h5 {[%clk 0:03:02.7]} 3... c5 {[%clk 0:03:03.1]}
4. d5 {[%clk 0:03:03.6]} 4... b5 {[%clk 0:02:59.2]} 5. e4 {[%clk 0:03:03.9]}
5... a6 {[%clk 0:02:52]} 6. a4 {[%clk 0:03:03.3]} 6... b4 {[%clk 0:02:47.7]} 7.
Nd2 {[%clk 0:03:04.4]} 7... d6 {[%clk 0:02:44.8]} 8. a5 {[%clk 0:03:05]} 8...
Bd7 {[%clk 0:02:42.6]} 9. Nc4 {[%clk 0:03:05.3]} 9... Bb5 {[%clk 0:02:40.8]} 10.
Nf3 {[%clk 0:03:05.5]} 10... Nd7 {[%clk 0:02:40.6]} 11. Bd3 {[%clk 0:03:05.7]}
11... Qc7 {[%clk 0:02:35]} 12. Qe2 {[%clk 0:03:05.7]} 12... f6 {[%clk
0:02:31.9]} 13. h6 {[%clk 0:02:57.4]} 13... Bf8 {[%clk 0:02:30.9]} 14. c3 {[%clk
0:02:52.6]} 14... g5 {[%clk 0:02:21.6]} 15. Nh2 {[%clk 0:02:37.3]} 15... Nxh6
{[%clk 0:02:16.4]} 16. Qh5+ {[%clk 0:02:36.8]} 16... Nf7 {[%clk 0:02:17.4]} 17.
Ng4 {[%clk 0:02:36.9]} 17... Bg7 {[%clk 0:01:59.3]} 18. Bd2 {[%clk 0:02:34.9]}
18... bxc3 {[%clk 0:01:58]} 19. Bxc3 {[%clk 0:02:29.9]} 19... Rb8 {[%clk
0:01:56.4]} 20. O-O {[%clk 0:02:27.9]} 20... Kf8 {[%clk 0:01:55.6]} 21. Nge3
{[%clk 0:02:27.8]} 21... Nde5 {[%clk 0:01:52.8]} 22. Nxe5 {[%clk 0:02:05.9]}
22... dxe5 {[%clk 0:01:47.2]} 23. Bxb5 {[%clk 0:02:06.1]} 23... axb5 {[%clk
0:01:45.1]} 24. b4 {[%clk 0:02:06.5]} 24... c4 {[%clk 0:01:42.8]} 25. Nf5 {[%clk
0:02:06.7]} 25... Nd6 {[%clk 0:01:40.8]} 26. Nxd6 {[%clk 0:02:07.2]} 26... exd6
{[%clk 0:01:40.2]} 27. a6 {[%clk 0:02:08.3]} 27... Qf7 {[%clk 0:01:31.9]} 28. a7
{[%clk 0:02:05.8]} 28... Ra8 {[%clk 0:01:32.7]} 29. Qxf7+ {[%clk 0:02:06.6]}
29... Kxf7 {[%clk 0:01:33]} 30. Ra6 {[%clk 0:02:08.5]} 30... Rhd8 {[%clk
0:01:31]} 31. Rfa1 {[%clk 0:02:08.7]} 31... Rd7 {[%clk 0:01:31.4]} 32. R1a5
{[%clk 0:02:03.4]} 32... Bf8 {[%clk 0:01:28.3]} 33. Bd2 {[%clk 0:02:03]} 33...
Be7 {[%clk 0:01:27.9]} 34. Be3 {[%clk 0:02:04]} 34... Rb7 {[%clk 0:01:25.9]} 35.
Rc6 {[%clk 0:02:04.9]} 35... Ke8 {[%clk 0:01:23.6]} 36. Kh2 {[%clk 0:02:05]}
36... Kd7 {[%clk 0:01:24.6]} 37. Kh3 {[%clk 0:02:05.2]} 37... Bd8 {[%clk
0:01:25.3]} 38. Raa6 {[%clk 0:02:05.8]} 38... Be7 {[%clk 0:01:11.9]} 39. Kg4
{[%clk 0:02:04.5]} 39... Rc7 {[%clk 0:01:07.2]} 40. Kf5 {[%clk 0:02:05.2]} 40...
Rb7 {[%clk 0:01:03.4]} 41. f3 {[%clk 0:02:05.1]} 41... Rc7 {[%clk 0:01:00.8]}
42. Rxc7+ {[%clk 0:02:04.1]} 42... Kxc7 {[%clk 0:01:01.6]} 43. Ke6 {[%clk
0:02:05.7]} 43... Kd8 {[%clk 0:00:55.5]} 44. Rc6 {[%clk 0:01:56.6]} 44... h5
{[%clk 0:00:51.8]} 45. Bb6+ {[%clk 0:01:51.4]} 45... Ke8 {[%clk 0:00:52.2]} 46.
Bf2 {[%clk 0:01:50.5]} 46... Kd8 {[%clk 0:00:49.1]} 47. Be3 {[%clk 0:01:51.2]}
47... h4 {[%clk 0:00:48.8]} 48. Bg1 {[%clk 0:01:50.4]} 48... Bf8 {[%clk
0:00:47.5]} 49. Kxf6 {[%clk 0:01:49.8]} 49... Be7+ {[%clk 0:00:44.3]} 50. Ke6
{[%clk 0:01:50.3]} 50... Bf8 {[%clk 0:00:45.7]} 51. Bf2 {[%clk 0:01:51.1]} 51...
Be7 {[%clk 0:00:46.4]} 52. Be3 {[%clk 0:01:52.2]} 52... Ke8 {[%clk 0:00:46.4]}
53. Rc7 {[%clk 0:01:52.6]} 53... Bd8 {[%clk 0:00:47.3]} 54. Rb7 {[%clk 0:01:53]}
1-0

[Event "*** Titled Tuesday Blitz"]
[Site "Chess.com"]
[Date "2018.08.07"]
[Round "3"]
[White "chess4life23"]
[Black "norwaytoadog"]
[Result "1-0"]
[WhiteElo "2282"]
[BlackElo "2136"]
[TimeControl "180+2"]
[EndTime "13:33:57 PDT"]
[Termination "chess4life23 won by resignation"]

1. d4 {[%clk 0:02:36.8]} 1... Nf6 {[%clk 0:03:00]} 2. c4 {[%clk 0:02:37.5]} 2...
e6 {[%clk 0:03:01.1]} 3. Nf3 {[%clk 0:02:37.7]} 3... Bb4+ {[%clk 0:03:00.6]} 4.
Nbd2 {[%clk 0:02:37.9]} 4... d6 {[%clk 0:02:59.5]} 5. a3 {[%clk 0:02:39.2]} 5...
Bxd2+ {[%clk 0:02:57.5]} 6. Bxd2 {[%clk 0:02:36.8]} 6... Qe7 {[%clk 0:02:57.4]}
7. Bg5 {[%clk 0:02:29.6]} 7... h6 {[%clk 0:02:55.6]} 8. Bh4 {[%clk 0:02:30.4]}
8... e5 {[%clk 0:02:51.3]} 9. dxe5 {[%clk 0:02:26]} 9... dxe5 {[%clk 0:02:52.2]}
10. e3 {[%clk 0:02:26.7]} 10... O-O {[%clk 0:02:52.5]} 11. Be2 {[%clk
0:02:24.1]} 11... a5 {[%clk 0:02:52.6]} 12. O-O {[%clk 0:02:21.5]} 12... a4
{[%clk 0:02:51]} 13. Qc2 {[%clk 0:01:53.1]} 13... Nc6 {[%clk 0:02:41.2]} 14. Nd2
{[%clk 0:01:47.4]} 14... g5 {[%clk 0:02:28.1]} 15. Bg3 {[%clk 0:01:47]} 15...
Be6 {[%clk 0:02:24.9]} 16. Bf3 {[%clk 0:01:43]} 16... Bd7 {[%clk 0:02:03.3]} 17.
Rfd1 {[%clk 0:01:28.4]} 17... Bg4 {[%clk 0:01:43.7]} 18. Bxg4 {[%clk 0:00:52.3]}
18... Nxg4 {[%clk 0:01:44.5]} 19. Qf5 {[%clk 0:00:53.7]} 19... Nf6 {[%clk
0:01:21.5]} 20. h4 {[%clk 0:00:50]} 20... Qd7 {[%clk 0:01:17.9]} 21. Qxf6 {[%clk
0:00:46.3]} 21... g4 {[%clk 0:01:00.4]} 22. Nf3 {[%clk 0:00:39.9]} 22... Qe8
{[%clk 0:00:43.7]} 23. Nxe5 {[%clk 0:00:37.9]} 23... Ra6 {[%clk 0:00:39]} 24.
Qf4 {[%clk 0:00:32.6]} 24... f5 {[%clk 0:00:31.9]} 25. Nxc6 {[%clk 0:00:29.6]}
25... Rxc6 {[%clk 0:00:32.5]} 26. Rd5 {[%clk 0:00:30]} 26... Qe6 {[%clk
0:00:32.4]} 27. Rad1 {[%clk 0:00:30.9]} 27... Rf7 {[%clk 0:00:26.4]} 28. Qe5
{[%clk 0:00:31.5]} 28... Qxe5 {[%clk 0:00:20.6]} 29. Bxe5 {[%clk 0:00:33.4]}
29... Rxc4 {[%clk 0:00:21.6]} 30. Rd8+ {[%clk 0:00:32.3]} 30... Rf8 {[%clk
0:00:22.7]} 31. Rxf8+ {[%clk 0:00:31.5]} 31... Kxf8 {[%clk 0:00:23.8]} 32. Rd7
{[%clk 0:00:32.6]} 32... Rc2 {[%clk 0:00:23.1]} 33. Rxc7 {[%clk 0:00:26.9]}
33... Rxb2 {[%clk 0:00:24.4]} 34. Bxb2 {[%clk 0:00:27.1]} 1-0

[Event "*** Titled Tuesday Blitz"]
[Site "Chess.com"]
[Date "2018.08.07"]
[Round "3"]
[White "Mimsychess"]
[Black "hypert"]
[Result "0-1"]
[WhiteElo "2278"]
[BlackElo "2342"]
[TimeControl "180+2"]
[EndTime "13:33:58 PDT"]
[Termination "hypert won by resignation"]

1. e4 {[%clk 0:02:55.4]} 1... c5 {[%clk 0:03:00.7]} 2. Nf3 {[%clk 0:02:55.5]}
2... Nc6 {[%clk 0:03:02.2]} 3. Bb5 {[%clk 0:02:55.6]} 3... e6 {[%clk 0:03:02.8]}
4. O-O {[%clk 0:02:46.2]} 4... Nge7 {[%clk 0:03:03.6]} 5. Re1 {[%clk 0:02:47.3]}
5... a6 {[%clk 0:03:04.8]} 6. Bf1 {[%clk 0:02:48.2]} 6... d5 {[%clk 0:03:05]} 7.
exd5 {[%clk 0:02:49.2]} 7... Nxd5 {[%clk 0:03:05.1]} 8. d4 {[%clk 0:02:49]} 8...
b5 {[%clk 0:03:00.5]} 9. a4 {[%clk 0:02:33.2]} 9... b4 {[%clk 0:03:00.5]} 10. c4
{[%clk 0:02:28.8]} 10... bxc3 {[%clk 0:03:00.3]} 11. bxc3 {[%clk 0:02:18.7]}
11... cxd4 {[%clk 0:02:59.5]} 12. cxd4 {[%clk 0:02:16.2]} 12... Bb4 {[%clk
0:02:57.8]} 13. Re4 {[%clk 0:02:09.9]} 13... O-O {[%clk 0:02:49.2]} 14. Bg5
{[%clk 0:02:06.3]} 14... Be7 {[%clk 0:02:48.5]} 15. h4 {[%clk 0:02:01.2]} 15...
Bb7 {[%clk 0:02:42.4]} 16. Nbd2 {[%clk 0:01:55.5]} 16... Nc3 {[%clk 0:02:42.1]}
17. Qb3 {[%clk 0:01:50.2]} 17... Nxe4 {[%clk 0:02:39.5]} 18. Qxb7 {[%clk
0:01:50.5]} 18... Nxd2 {[%clk 0:02:35.7]} 19. Bxd2 {[%clk 0:01:42.3]} 19... Qc8
{[%clk 0:02:30.4]} 20. Rb1 {[%clk 0:01:31.6]} 20... Qxb7 {[%clk 0:02:30.2]} 21.
Rxb7 {[%clk 0:01:31.4]} 21... Bf6 {[%clk 0:02:31.1]} 22. Be3 {[%clk 0:01:27.3]}
22... a5 {[%clk 0:02:29.3]} 23. Bb5 {[%clk 0:01:21.1]} 23... Nb4 {[%clk
0:02:29.2]} 24. Ne5 {[%clk 0:01:06.7]} 24... Bxh4 {[%clk 0:02:21]} 25. g3 {[%clk
0:00:58.7]} 25... Bf6 {[%clk 0:02:20.3]} 26. Nd7 {[%clk 0:00:56.7]} 26... Rfd8
{[%clk 0:02:20]} 27. g4 {[%clk 0:00:36.7]} 27... h6 {[%clk 0:02:15.1]} 28. Nxf6+
{[%clk 0:00:29.3]} 28... gxf6 {[%clk 0:02:15.8]} 29. Bd7 {[%clk 0:00:21.8]}
29... Nc2 {[%clk 0:02:09]} 30. Bxh6 {[%clk 0:00:20.8]} 30... Nxd4 {[%clk
0:02:09.2]} 31. Be3 {[%clk 0:00:21.2]} 31... Nf3+ {[%clk 0:02:07.5]} 32. Kg2
{[%clk 0:00:21.2]} 32... Ne5 {[%clk 0:02:09.4]} 33. Bb5 {[%clk 0:00:19.9]} 33...
Rdb8 {[%clk 0:02:07.7]} 34. Rc7 {[%clk 0:00:18.2]} 34... Rc8 {[%clk 0:02:08.4]}
35. Rb7 {[%clk 0:00:18.5]} 35... Nc4 {[%clk 0:02:06.1]} 36. Bf4 {[%clk
0:00:12.8]} 36... e5 {[%clk 0:02:03]} 37. Bg3 {[%clk 0:00:09.1]} 37... Nd6
{[%clk 0:02:03.8]} 38. Rb6 {[%clk 0:00:07.6]} 38... Nxb5 {[%clk 0:02:03.9]} 39.
Rxb5 {[%clk 0:00:09.5]} 39... Rcb8 {[%clk 0:02:03.9]} 40. Rc5 {[%clk 0:00:09.5]}
40... Rb4 {[%clk 0:02:04.1]} 41. g5 {[%clk 0:00:10.8]} 41... fxg5 {[%clk
0:02:02.2]} 42. Rxe5 {[%clk 0:00:11.8]} 42... f6 {[%clk 0:02:02.9]} 43. Re6
{[%clk 0:00:08.1]} 43... Kf7 {[%clk 0:02:03.4]} 44. Rc6 {[%clk 0:00:07.7]} 44...
Rxa4 {[%clk 0:02:04.1]} 45. Bd6 {[%clk 0:00:07.1]} 45... Rg4+ {[%clk 0:02:03.3]}
46. Kf3 {[%clk 0:00:07.5]} 46... Rh4 {[%clk 0:02:01.2]} 47. Kg3 {[%clk
0:00:05.7]} 47... Rd4 {[%clk 0:01:58.2]} 48. f4 {[%clk 0:00:04.4]} 48... gxf4+
{[%clk 0:01:58.2]} 49. Bxf4 {[%clk 0:00:04.8]} 49... a4 {[%clk 0:01:59.1]} 50.
Rc7+ {[%clk 0:00:02.6]} 50... Kg6 {[%clk 0:01:58.5]} 51. Rc1 {[%clk 0:00:04.1]}
51... a3 {[%clk 0:01:58.7]} 52. Kf3 {[%clk 0:00:04.1]} 52... a2 {[%clk
0:01:57.8]} 53. Ra1 {[%clk 0:00:04.8]} 53... Rb4 {[%clk 0:01:58.5]} 0-1

[Event "*** Titled Tuesday Blitz"]
[Site "Chess.com"]
[Date "2018.08.07"]
[Round "3"]
[White "GMKrikor"]
[Black "morphy1984"]
[Result "1-0"]
[WhiteElo "2787"]
[BlackElo "2513"]
[TimeControl "180+2"]
[EndTime "13:34:02 PDT"]
[Termination "GMKrikor won by resignation"]

1. e4 {[%clk 0:03:01.9]} 1... e5 {[%clk 0:02:56.5]} 2. Nf3 {[%clk 0:03:02.2]}
2... Nc6 {[%clk 0:02:56.5]} 3. d4 {[%clk 0:02:50.8]} 3... exd4 {[%clk
0:02:56.4]} 4. Bc4 {[%clk 0:02:52.1]} 4... Nf6 {[%clk 0:02:55.9]} 5. e5 {[%clk
0:02:50.2]} 5... d5 {[%clk 0:02:56]} 6. Bb5 {[%clk 0:02:51.9]} 6... Ne4 {[%clk
0:02:54.6]} 7. Nxd4 {[%clk 0:02:53.2]} 7... Bc5 {[%clk 0:02:54.1]} 8. Be3 {[%clk
0:02:54]} 8... Bd7 {[%clk 0:02:52.1]} 9. Bxc6 {[%clk 0:02:53.4]} 9... bxc6
{[%clk 0:02:52.8]} 10. O-O {[%clk 0:02:47.7]} 10... O-O {[%clk 0:02:49.1]} 11.
f3 {[%clk 0:02:42.5]} 11... Ng5 {[%clk 0:02:49.4]} 12. f4 {[%clk 0:02:44]} 12...
Ne4 {[%clk 0:02:47.5]} 13. Nd2 {[%clk 0:02:41]} 13... Nxd2 {[%clk 0:02:46.1]}
14. Qxd2 {[%clk 0:02:42.9]} 14... f6 {[%clk 0:02:38.5]} 15. Rae1 {[%clk
0:02:02.9]} 15... fxe5 {[%clk 0:02:28.1]} 16. fxe5 {[%clk 0:01:57.2]} 16...
Rxf1+ {[%clk 0:02:20.7]} 17. Rxf1 {[%clk 0:01:57.2]} 17... Qe7 {[%clk
0:02:15.6]} 18. e6 {[%clk 0:01:50.4]} 18... Bxd4 {[%clk 0:01:59.4]} 19. Bxd4
{[%clk 0:01:49.5]} 19... Bxe6 {[%clk 0:01:50.4]} 20. Re1 {[%clk 0:01:46.9]}
20... c5 {[%clk 0:01:23.5]} 21. Bf2 {[%clk 0:01:25.3]} 21... d4 {[%clk
0:00:53.5]} 22. Qf4 {[%clk 0:01:18.6]} 22... Re8 {[%clk 0:00:49.7]} 23. h3
{[%clk 0:01:13.7]} 23... Qd6 {[%clk 0:00:49.4]} 24. Qg5 {[%clk 0:01:10.6]} 24...
Bf7 {[%clk 0:00:48.9]} 25. Rxe8+ {[%clk 0:01:07.9]} 25... Bxe8 {[%clk
0:00:49.6]} 26. Bg3 {[%clk 0:01:09.8]} 26... Qc6 {[%clk 0:00:25]} 27. Qe7 {[%clk
0:01:10.1]} 27... h6 {[%clk 0:00:20.7]} 28. Bxc7 {[%clk 0:01:04]} 28... Bf7
{[%clk 0:00:21.1]} 29. Be5 {[%clk 0:01:01.9]} 29... Qd5 {[%clk 0:00:20.2]} 30.
b3 {[%clk 0:00:58.1]} 30... a6 {[%clk 0:00:20.1]} 31. Kh2 {[%clk 0:00:58.6]}
31... Kh7 {[%clk 0:00:18.1]} 32. a4 {[%clk 0:00:43.5]} 32... c4 {[%clk 0:00:19]}
33. bxc4 {[%clk 0:00:44.3]} 33... Qxc4 {[%clk 0:00:19.8]} 34. Qf8 {[%clk
0:00:45.5]} 34... Kg6 {[%clk 0:00:14.2]} 35. Qxg7+ {[%clk 0:00:35.8]} 35... Kf5
{[%clk 0:00:15]} 36. Qf6+ {[%clk 0:00:34.2]} 36... Ke4 {[%clk 0:00:15.1]} 37.
Qf4+ {[%clk 0:00:35.4]} 1-0

[Event "*** Titled Tuesday Blitz"]
[Site "Chess.com"]
[Date "2018.08.07"]
[Round "3"]
[White "kikydu96"]
[Black "hansen"]
[Result "0-1"]
[WhiteElo "2443"]
[BlackElo "2650"]
[TimeControl "180+2"]
[EndTime "13:34:02 PDT"]
[Termination "hansen won by resignation"]

1. b3 {[%clk 0:03:01.9]} 1... e5 {[%clk 0:02:59.5]} 2. Bb2 {[%clk 0:02:52.8]}
2... Nc6 {[%clk 0:03:00.4]} 3. e3 {[%clk 0:02:53.3]} 3... Nf6 {[%clk 0:03:00.3]}
4. Bb5 {[%clk 0:02:54.8]} 4... e4 {[%clk 0:03:00.6]} 5. d3 {[%clk 0:02:50.9]}
5... a6 {[%clk 0:02:52.2]} 6. Bxc6 {[%clk 0:02:50.7]} 6... dxc6 {[%clk
0:02:54.1]} 7. Ne2 {[%clk 0:02:45.9]} 7... exd3 {[%clk 0:02:34.7]} 8. cxd3
{[%clk 0:02:44.7]} 8... Bb4+ {[%clk 0:02:32.1]} 9. Nbc3 {[%clk 0:02:43.6]} 9...
O-O {[%clk 0:02:31.6]} 10. O-O {[%clk 0:02:42.8]} 10... Re8 {[%clk 0:02:32.1]}
11. Qc2 {[%clk 0:02:35.4]} 11... Bd6 {[%clk 0:02:29.4]} 12. h3 {[%clk
0:02:30.6]} 12... c5 {[%clk 0:02:28.6]} 13. Ne4 {[%clk 0:02:31.3]} 13... Nxe4
{[%clk 0:02:25.4]} 14. dxe4 {[%clk 0:02:33.2]} 14... Qh4 {[%clk 0:02:27]} 15.
Nf4 {[%clk 0:02:00.5]} 15... b6 {[%clk 0:01:47]} 16. Qc3 {[%clk 0:01:24.9]}
16... Be5 {[%clk 0:01:40.4]} 17. Qd2 {[%clk 0:01:25.4]} 17... Bd6 {[%clk
0:01:32.4]} 18. Qc3 {[%clk 0:01:24.2]} 18... Be5 {[%clk 0:01:07.8]} 19. Qd2
{[%clk 0:01:24.9]} 19... Bxb2 {[%clk 0:01:09.2]} 20. Qxb2 {[%clk 0:01:25.5]}
20... Rxe4 {[%clk 0:01:07.5]} 21. Rad1 {[%clk 0:01:20.1]} 21... Bb7 {[%clk
0:00:52.5]} 22. Rd7 {[%clk 0:01:18.2]} 22... Rc8 {[%clk 0:00:52.3]} 23. Rfd1
{[%clk 0:01:16.1]} 23... h6 {[%clk 0:00:49.3]} 24. Qd2 {[%clk 0:01:11.8]} 24...
Bc6 {[%clk 0:00:47.1]} 25. Rd3 {[%clk 0:00:52.7]} 25... Qg5 {[%clk 0:00:42.3]}
26. f3 {[%clk 0:00:45.6]} 26... Ree8 {[%clk 0:00:42.5]} 27. e4 {[%clk 0:00:45]}
27... f5 {[%clk 0:00:41]} 28. exf5 {[%clk 0:00:23.9]} 28... Qxf5 {[%clk
0:00:41.7]} 29. Ne2 {[%clk 0:00:21.1]} 29... Bb5 {[%clk 0:00:37.5]} 30. Re3
{[%clk 0:00:21.1]} 30... Rxe3 {[%clk 0:00:38.1]} 31. Qxe3 {[%clk 0:00:22.4]}
31... Re8 {[%clk 0:00:39.7]} 32. Qf4 {[%clk 0:00:23.5]} 32... Qc2 {[%clk
0:00:28]} 33. Rd2 {[%clk 0:00:16.3]} 33... Qb1+ {[%clk 0:00:28.8]} 34. Kf2
{[%clk 0:00:16.5]} 34... Bxe2 {[%clk 0:00:28.9]} 35. Rxe2 {[%clk 0:00:16.4]}
35... Rxe2+ {[%clk 0:00:30.4]} 36. Kxe2 {[%clk 0:00:17.5]} 36... Qxa2+ {[%clk
0:00:31.9]} 37. Kf1 {[%clk 0:00:18.9]} 37... Qa1+ {[%clk 0:00:31.2]} 38. Kf2
{[%clk 0:00:19.5]} 38... Qd4+ {[%clk 0:00:32.1]} 0-1